Cogmind - Beta 11 X8 @@@ ROGUE MODE // 2022.01.06 @ 13:28:38 Player: Minty Result: Self-destructed Performance ------------- Evolutions (5) 2500 Regions Visited (17) 3400 Robots Destroyed (107) 535 Value Destroyed (4191) 4191 Prototype IDs (28) 560 Alien Tech Used (0) 0 Bonus (1994) 1994 TOTAL SCORE: 13180 Bonus ------- High Alert Combat Kills 301 Follower Combat Kills 1382 Aligned with FarCom 300 Met Data Miner 300 Friendly Fire -289 Cogmind --------- Core Integrity 852/1000 Matter 154/400 Energy 28/170 System Corruption 1% Temperature Cool (0) Movement Core (100) Ox1 Location -5/Factory Parts ------- > --- POWER (1) -------- Micro Fission Core > --- PROPULSION (2) --- (None) > --- UTILITY (7) ------ Medium Matter Pod Advanced Weight Redist. System Advanced Melee Analysis Suite Microactuators ECM Suite > --- WEAPON (7) ------- Ripper > --- INVENTORY (5) ---- Neutrino Core Micro Fission Core Peak State ------------ > --- POWER ------------ Improved Deuterium Engine > --- PROPULSION ------- Heavy Treads > --- UTILITY ---------- Improved Cooling System Targeting Computer Damper Plating > --- WEAPON ----------- Heavy Laser Heavy Laser Heavy Laser Improved Spread Laser Battle Rifle Ripper > --- INVENTORY -------- Reinforced Deuterium Engine Heavy EM Pulse Gun Plasma Cutter [Rating: 68] Favorites ----------- Power Ion Engine Engine Ion Engine Power Core Light Fission Core Propulsion Aluminum Leg Treads Heavy Treads Leg Aluminum Leg Wheel Armored Huge Wheel Utility Targeting Computer Device Improved Cooling System Storage Small Storage Unit Processor Targeting Computer Protection Hardened Medium Armor Plating Weapon Heavy Laser Energy Gun Heavy Laser Energy Cannon EM Pulse Cannon Ballistic Gun Battle Rifle Ballistic Cannon Assault Cannon Launcher Rocket Launcher Special Weapon Flamer Slashing Weapon Ripper Build | -11 -10 -10 -9 -9 -9 -8 -8 -7 -7 -7 -7 -7 -6 -6 -6 -6 -5 ------- Run | Scr Mat Min Mat Min Exi Min Mat Fac Was Fac Low Dat Pro Fac Low Low Fac Slots Evolved 10 | . . . 2 . . . 2 2 . . . . . 2 . . 2 Power . | . . . . . . . . . . . . . . . . . . Propulsion . | . . . . . . . . . . . . . . . . . . Utility 5 | . . . 1 . . . . 2 . . . . . 1 . . 1 Weapon 5 | . . . 1 . . . 2 . . . . . . 1 . . 1 Parts Attached 108 | . 8 3 10 . 1 4 20 12 5 . 1 . 4 5 8 4 23 Power 16 | . 2 1 . . . . 3 1 . . . . . . 2 2 5 Engine 10 | . 2 1 . . . . 3 1 . . . . . . 1 2 . Core 6 | . . . . . . . . . . . . . . . 1 . 5 Reactor . | . . . . . . . . . . . . . . . . . . Propulsion 11 | . 2 . 2 . . 2 2 1 1 . . . . . . . 1 Treads 6 | . 2 . . . . . 2 1 1 . . . . . . . . Leg 4 | . . . 2 . . 2 . . . . . . . . . . . Wheel 1 | . . . . . . . . . . . . . . . . . 1 Hover . | . . . . . . . . . . . . . . . . . . Flight . | . . . . . . . . . . . . . . . . . . Utility 35 | . . . 4 . . 1 4 4 4 . . . 1 1 3 1 12 Device 18 | . . . 4 . . . 3 1 2 . . . 1 . 3 . 4 Storage 1 | . . . . . . . . . . . . . . . . . 1 Processor 5 | . . . . . . 1 1 1 1 . . . . . . 1 . Hackware . | . . . . . . . . . . . . . . . . . . Protection 11 | . . . . . . . . 2 1 . . . . 1 . . 7 Artifact . | . . . . . . . . . . . . . . . . . . Weapon 46 | . 4 2 4 . 1 1 11 6 . . 1 . 3 4 3 1 5 Energy Gun 26 | . 2 1 2 . . . 9 5 . . . . 2 3 1 1 . Energy Cannon 3 | . 1 . 1 . . . . 1 . . . . . . . . . Ballistic Gun 5 | . 1 1 . . 1 . . . . . 1 . 1 . . . . Ballistic Cannon 1 | . . . 1 . . . . . . . . . . . . . . Launcher 2 | . . . . . . . 2 . . . . . . . . . . Special Weapon 5 | . . . . . . . . . . . . . . 1 2 . 2 Impact Weapon . | . . . . . . . . . . . . . . . . . . Slashing Weapon 4 | . . . . . . 1 . . . . . . . . . . 3 Piercing Weapon . | . . . . . . . . . . . . . . . . . . Special Melee Weapon . | . . . . . . . . . . . . . . . . . . Unidentified Prototypes 5 | . . . 1 . . . 2 1 . . . . . 1 . . . Corrupted Parts 1 | . . . . . . . 1 . . . . . . . . . . System Corruption 2 | . . . . . . . 2 . . . . . . . . . . Parts Lost 39 | . 2 . . . . . 7 5 . . 2 . 1 . 8 10 4 Power 4 | . . . . . . . 1 . . . . . . . . 3 . Propulsion 5 | . 1 . . . . . 2 . . . . . . . 1 . 1 Utility 13 | . . . . . . . 2 3 . . 1 . . . 2 3 2 Weapon 17 | . 1 . . . . . 2 2 . . 1 . 1 . 5 4 1 Highest Loss Streak 10 | . 2 . . . . . 3 3 . . 2 . 1 . 4 10 4 Average Slot Usage (%) 83 | . 85 85 99 100 95 88 87 92 91 92 86 84 90 72 66 60 49 Engine 7 | . 14 14 11 11 11 11 9 7 7 7 7 7 7 6 2 . . Treads 5 | . 12 28 8 . . . . 13 9 7 7 7 7 6 4 . . Leg 7 | . 15 . 13 22 22 22 13 . . . . . . . . . . Device 11 | . . . 21 22 22 16 9 7 6 7 7 7 13 6 11 12 8 Storage 4 | . 14 14 11 11 11 11 7 . . . . . . . . . 3 Processor 6 | . . . . . . 5 9 18 14 15 11 7 7 6 6 10 5 Protection 5 | . . . . . . . . 7 11 15 15 15 15 6 1 . 10 Energy Gun 16 | . 7 14 15 11 6 . 22 25 23 23 19 15 15 24 22 23 . Energy Cannon 4 | . 13 . 6 11 11 9 . 3 7 7 7 7 6 . . . . Ballistic Gun 3 | . 7 14 . . 4 11 3 . . . 2 7 7 6 1 . . Ballistic Cannon 1 | . . . 10 11 6 . . . . . . . . . . . . Slashing Weapon 4 | . . . . . . 1 9 7 7 7 7 7 7 6 6 5 5 Naked Turns . | . . . . . . . . . . . . . . . . . . Heaviest Build 84 | 14 15 12 24 24 26 26 34 43 40 40 40 39 47 78 84 41 43 Greatest Support 70 | 20 40 40 40 20 20 30 40 42 70 70 70 70 70 70 70 3 37 Greatest Overweight (x) 13 | . 1 . 2 1 1 1 6 2 13 . . . . 1 10 13 4 Average Overweight (x) . | . . . . 1 . . . . . . . . . 1 1 9 . Largest Inventory Capacity 8 | . 8 8 8 8 8 8 8 5 5 5 5 5 5 5 5 5 5 Average Capacity 6 | . 8 8 8 8 8 8 7 5 5 5 5 5 5 5 5 5 5 Most Carried 8 | . 8 8 8 8 8 8 8 5 5 5 5 5 5 5 4 2 2 Average Carried 5 | . 7 6 7 8 8 7 6 4 4 5 5 5 5 2 2 1 . Final Capacity 8 | 8 8 8 8 8 8 8 5 5 5 5 5 5 5 5 5 5 5 Final Carried 8 | 6 8 6 8 8 8 8 5 5 5 5 5 5 5 3 2 1 2 Class Distribution -------------------- 23% | Scavenger-Tank 22% | Gunner 11% | Scavenger-Skirmisher 11% | Mutant 8% | Skirmisher 8% | Scavenger-Executioner 6% | Scavenger-Gunner 3% | Derelict-Gunner Dominant Class ---------------- Mutant | -10/Materials Mutant | -10/Mines Gunner | -9/Materials Gunner | -9/Mines Gunner | -9/Exiles Skirmisher | -8/Mines Scavenger-Skirmisher | -8/Materials Scavenger-Gunner | -7/Factory Scavenger-Tank | -7/Waste Scavenger-Tank | -7/Factory Scavenger-Tank | -7/Lower Caves Scavenger-Tank | -7/Data Miner Scavenger-Tank | -6/Proximity Caves Scavenger-Executioner | -6/Factory Scavenger-Executioner | -6/Lower Caves Derelict-Gunner | -6/Lower Caves Mutant | -5/Factory Resources | -11 -10 -10 -9 -9 -9 -8 -8 -7 -7 -7 -7 -7 -6 -6 -6 -6 -5 ----------- Run | Scr Mat Min Mat Min Exi Min Mat Fac Was Fac Low Dat Pro Fac Low Low Fac Matter Collected 1638 | 200 158 30 240 14 . 53 236 114 65 20 42 30 158 110 94 10 64 Remotely . | . . . . . . . . . . . . . . . . . . Salvage Created 5058 | . 415 . 408 47 . 334 1793 434 . . 125 . 20 648 614 . 220 Parts 234 | . 18 . 29 5 . 17 89 14 . . 6 . 1 34 11 . 10 Haulers Intercepted 1 | . . . . . . . 1 . . . . . . . . . . Recyclers Shooed 3 | . . . . . . . 1 . . . . . . 2 . . . Parts Field Recycled . | . . . . . . . . . . . . . . . . . . Retrieved Matter . | . . . . . . . . . . . . . . . . . . Parts Self-Destructed 50 | . . . . . . . . . . . 20 . 19 . 11 . . Prevented 9 | . . . . . . . . . . . 3 . 6 . . . . Kills | -11 -10 -10 -9 -9 -9 -8 -8 -7 -7 -7 -7 -7 -6 -6 -6 -6 -5 ------- Run | Scr Mat Min Mat Min Exi Min Mat Fac Was Fac Low Dat Pro Fac Low Low Fac Combat Hostiles Destroyed 83 | . 10 . 9 . . 5 30 6 . . 2 . . 9 10 . 2 Melee 5 | . 1 . . . . . 1 . . . 1 . . 1 1 . . Guns 54 | . 5 . 1 . . 4 25 4 . . 1 . . 7 7 . . Cannons 12 | . 3 . 7 . . 1 . 1 . . . . . . . . . AOE 5 | . . . . . . . 3 . . . . . . . . . 2 Classes Destroyed 15 | . 2 . 2 1 . 2 5 1 . . . . . 2 . . . Worker 4 | . . . . 1 . . 1 1 . . . . . . . . 1 Builder 6 | . 1 . 2 . . . 3 . . . . . . . . . . Tunneler 5 | . . . 1 1 . 1 1 1 . . . . . . . . . Hauler 1 | . . . . . . . 1 . . . . . . . . . . Recycler 7 | . . . . . . 1 3 1 . . . . . 1 . . 1 Watcher 1 | . . . . . . . 1 . . . . . . . . . . Swarmer 1 | . . . . . . . . . . . . . . 1 . . . Grunt 58 | . 10 . 6 . . 3 22 4 . . 1 . . 3 7 . 2 Brawler 6 | . . . . . . . 2 . . . 1 . . 1 2 . . Duelist 1 | . . . . . . . 1 . . . . . . . . . . Sentry 9 | . . . 3 . . . 4 1 . . . . . . 1 . . Hunter 4 | . . . . . . 2 . . . . . . . 2 . . . Programmer 2 | . . . . . . . . 1 . . . . . 1 . . . Heavy 1 | . . . . . . . 1 . . . . . . . . . . Behemoth 1 | . . . . . . . . . . . . . . 1 . . . Decomposer 1 | . . . . . . . . . . . . . 1 . . . . Thug 1 | . . . . . . . . . . . . . . 1 . . . Best Kill Streak 10 | . 4 . 5 1 . 3 10 4 . . 1 . . 3 3 . 2 Combat Bots Only 8 | . 4 . 2 . . 3 8 4 . . 1 . . 3 3 . 2 Max Kills in Single Turn 3 | . 1 . 2 1 . 1 3 1 . . 1 . 1 1 1 . 2 Gunslinging . | . . . . . . . . . . . . . . . . . . Exploded 2 | . . . . . . . 1 . . . . . . . . . 2 Melee 1 | . 1 . . . . . 1 . . . 1 . . 1 1 . . Uniques/NPCs Destroyed . | . . . . . . . . . . . . . . . . . . Combat | -11 -10 -10 -9 -9 -9 -8 -8 -7 -7 -7 -7 -7 -6 -6 -6 -6 -5 -------- Run | Scr Mat Min Mat Min Exi Min Mat Fac Was Fac Low Dat Pro Fac Low Low Fac Damage Taken 7207 | . 743 . 423 22 . 217 1323 852 . . 105 . 78 819 1026 605 994 Core 1129 | . 163 . 109 . . 38 239 33 . . . . 10 63 101 225 148 Absorbed by Shields 82 | . . . . . . . . . . . . . 82 . . . . Core Remaining (%) 66 | 100 . 34 . . . 63 56 . . . . . 93 . . 54 . Volleys Fired 210 | . 42 . 28 4 . 16 48 15 . . 3 . 5 22 21 3 3 Largest 5 | . 2 . 3 3 . 1 4 4 . . 4 . 4 5 5 4 1 Hottest 327 | . 100 . 168 168 . 68 244 238 . . 238 . 208 307 327 293 20 Shots Fired 695 | . 83 . 83 12 . 45 208 50 3 . 12 1 22 83 82 8 3 Gun 553 | . 42 . 30 4 . 29 202 44 3 . 8 1 18 82 82 8 . Cannon 132 | . 41 . 53 8 . 16 . 6 . . 4 . 4 . . . . Launcher 6 | . . . . . . . 6 . . . . . . . . . . Special 4 | . . . . . . . . . . . . . . 1 . . 3 Kinetic 204 | . 30 . 28 4 . 29 79 . . . . 1 6 22 5 . . Thermal 413 | . 41 . 55 8 . 16 107 32 2 . 5 . 7 57 72 8 3 Explosive 6 | . . . . . . . 6 . . . . . . . . . . Electromagnetic 72 | . 12 . . . . . 16 18 1 . 7 . 9 4 5 . . Robot Hit Streak 25 | . 10 . 12 2 . 6 25 15 2 . 4 . 2 10 9 11 8 Robot Miss Streak 7 | . 5 . 7 2 . 4 2 1 1 . 1 1 4 3 3 1 2 Penetration Max . | . . . . . . . . . . . . . . . . . . Secondary Targets 7 | . . . . . . . 1 3 . . . . . 2 1 . . Max Gunslinging Chain 1 | . . . . . . . 1 1 . . . . . 1 1 . . Autonomous 109 | . . . . . . 29 80 . . . . . . . . . . Shots Hit Robots 489 | . 49 . 38 3 . 30 159 40 2 . 10 . 13 63 68 10 4 Core Hits 220 | . 12 . 13 2 . 11 66 17 2 . 6 . 7 37 38 3 6 Critical Kills 2 | . 1 . . . . 1 . . . . . . . . . . . Critical Parts Destroyed 4 | . . . . . . . 2 . . . . . . . . 2 . Critical Strikes 17 | . 1 . 2 . . 1 5 2 . . 1 . . . 3 2 . Burn 6 | . . . . . . . 2 1 . . . . . . 3 . . Meltdown 1 | . 1 . . . . . . . . . . . . . . . . Destroy 5 | . . . . . . 1 2 . . . . . . . . 2 . Blast 2 | . . . 2 . . . . . . . . . . . . . . Corrupt 3 | . . . . . . . 1 1 . . 1 . . . . . . Melee Attacks 50 | . . . . . . 1 9 6 . . 2 . 4 7 9 3 9 Impact . | . . . . . . . . . . . . . . . . . . Slashing 50 | . . . . . . 1 9 6 . . 2 . 4 7 9 3 9 Piercing . | . . . . . . . . . . . . . . . . . . Sneak Attacks 11 | . . . . . . 1 2 2 . . . . 1 2 . . 3 Combat Hostiles . | . . . . . . . . . . . . . . . . . . Follow-up Attacks . | . . . . . . . . . . . . . . . . . . Damage Inflicted 12697 | . 784 . 823 57 . 769 4732 844 43 . 222 . 388 1491 1420 275 849 Guns 8051 | . 413 . 232 14 . 513 3521 485 43 . 110 . 179 1140 1209 192 . Cannons 1337 | . 366 . 584 43 . 164 . 58 . . 45 . 77 . . . . Explosions 1318 | . . . . . . . 853 . . . . . . . . . 465 Melee 1962 | . . . . . . 92 358 301 . . 67 . 132 351 211 83 367 Ramming 12 | . 5 . 7 . . . . . . . . . . . . . . Kinetic 3553 | . 279 . 321 22 . 513 2026 . . . . . 58 280 54 . . Thermal 5772 | . 366 . 495 35 . 164 1571 381 28 . 65 . 74 814 1105 192 482 Explosive 530 | . . . . . . . 530 . . . . . . . . . . Electromagnetic 868 | . 134 . . . . . 247 162 15 . 90 . 124 46 50 . . Impact . | . . . . . . . . . . . . . . . . . . Slashing 1962 | . . . . . . 92 358 301 . . 67 . 132 351 211 83 367 Piercing . | . . . . . . . . . . . . . . . . . . Highest Corruption 18 | . . . . . . . 3 11 11 11 18 18 18 . . . 1 Average Corruption 11 | . . . . . . . 1 3 11 11 14 18 18 . . . 1 Corruption Purged . | . . . . . . . . . . . . . . . . . . Effects 104 | . . . . . . . . 3 21 5 15 5 54 . . . 1 Message Errors 29 | . . . . . . . . 1 9 . 3 . 16 . . . . Matter Fused 31 | . . . . . . . . 2 3 2 7 1 16 . . . . Heat Flow Errors 7 | . . . . . . . . . 2 1 1 . 3 . . . . Energy Discharges 8 | . . . . . . . . . 1 1 . 2 3 . . . 1 Parts Rejected 1 | . . . . . . . . . . . . . 1 . . . . Data Loss (minor) 9 | . . . . . . . . . 2 1 . . 6 . . . . Data Loss (major) 5 | . . . . . . . . . . . 2 1 2 . . . . Misfires 9 | . . . . . . . . . 3 . 1 1 4 . . . . Alerts 1 | . . . . . . . . . 1 . . . . . . . . Misdirections 3 | . . . . . . . . . . . . . 3 . . . . Weapon Failures 1 | . . . . . . . . . . . 1 . . . . . . Overload Shots . | . . . . . . . . . . . . . . . . . . Overflow Damage 529 | . 8 . . . . . 226 144 . . 22 . . 56 . . 73 Projectiles 8 | . 8 . . . . . . . . . . . . . . . . Explosions 158 | . . . . . . . 156 . . . . . . . . . 2 Melee 363 | . . . . . . . 70 144 . . 22 . . 56 . . 71 Knockbacks 2 | . . . 1 1 . . . . . . . . . . . . . Impact . | . . . . . . . . . . . . . . . . . . Kinetic 2 | . . . 1 1 . . . . . . . . . . . . . Secondary . | . . . . . . . . . . . . . . . . . . Self-Inflicted Damage 480 | . . . . 22 . . 214 4 . . . . . . . . 240 Shots 9 | . . . . 1 . . 4 1 . . . . . . . . 3 Rammed 1 | . 1 . . . . . . . . . . . . . . . . Targets Rammed 8 | . 6 . 1 . . 1 . . . . . . . . . . . Kicked 6 | . 4 . 1 . . 1 . . . . . . . . . . . Crushed 1 | . 1 . . . . . . . . . . . . . . . . Highest Temperature 543 | . 311 . 288 69 . 27 363 349 222 119 90 . 249 318 543 123 8 Average Temperature 116 | . 125 . 100 36 . 20 79 162 107 71 46 . 61 122 189 46 8 Received Heat Transfer 2309 | . 405 . 207 . . 72 423 192 . . 18 . 41 156 429 123 243 Effects 9 | . 1 . . . . . 2 . . . . . . 3 3 . . Shutdowns 1 | . . . . . . . . . . . . . . . 1 . . Interference 7 | . 1 . . . . . 2 . . . . . . 3 1 . . Damage (minor) 1 | . . . . . . . . . . . . . . . 1 . . Siege Activations . | . . . . . . . . . . . . . . . . . . Robots Corrupted . | . . . . . . . . . . . . . . . . . . Combat Hostiles . | . . . . . . . . . . . . . . . . . . Parts Fried 3 | . 1 . . . . . 1 1 . . . . . . . . . Impact Corruptions . | . . . . . . . . . . . . . . . . . . Robots Melted 6 | . 1 . 1 . . . 1 1 . . . . . . 2 . . Combat Hostiles 6 | . 1 . 1 . . . 1 1 . . . . . . 2 . . Parts Melted 16 | . . . . . . . 4 6 . . . . . 2 4 . . Heat Transferred 10535 | . 777 . 1073 74 . 296 3001 888 74 . 148 . 148 1327 1965 277 487 Parts Sabotaged . | . . . . . . . . . . . . . . . . . . Parts Stolen . | . . . . . . . . . . . . . . . . . . Parts Stripped . | . . . . . . . . . . . . . . . . . . Power Chain Reactions 1 | . . . . . . . 1 . . . . . . . . . . Missiles Intercepted . | . . . . . . . . . . . . . . . . . . Alert | -11 -10 -10 -9 -9 -9 -8 -8 -7 -7 -7 -7 -7 -6 -6 -6 -6 -5 ------- Run | Scr Mat Min Mat Min Exi Min Mat Fac Was Fac Low Dat Pro Fac Low Low Fac Peak Influence 706 | . 325 126 202 103 . 105 706 425 84 167 . . . 475 . . 254 Initial 294 | . . 126 48 78 . . 32 294 84 . . . . 137 . . . Average 189 | . 149 126 69 75 . 25 479 340 66 91 . . . 314 . . 21 Maximum Alert Level 3 | . 1 . 1 . . . 3 2 . . . . . 2 . . 1 Low Security (%) 62 | . 64 100 95 100 . 100 11 . 100 100 . . . 13 . . 97 Level 1 21 | . 35 . 4 . . . 15 83 . . . . . 68 . . 2 Level 2 15 | . . . . . . . 70 16 . . . . . 17 . . . Level 3 . | . . . . . . . 2 . . . . . . . . . . Level 4 . | . . . . . . . . . . . . . . . . . . Level 5 . | . . . . . . . . . . . . . . . . . . High Security . | . . . . . . . . . . . . . . . . . . Max Security . | . . . . . . . . . . . . . . . . . . Squads Dispatched 20 | . 4 . 3 . . . 5 1 . 1 . . . 3 . . 3 Investigation 9 | . 3 . 1 . . . 1 . . 1 . . . 1 . . 2 Extermination 2 | . . . . . . . . 1 . . . . . 1 . . . Reinforcement 9 | . 1 . 2 . . . 4 . . . . . . 1 . . 1 Assault . | . . . . . . . . . . . . . . . . . . Garrison . | . . . . . . . . . . . . . . . . . . Intercept . | . . . . . . . . . . . . . . . . . . Construction Impeded 2 | . . . . . . . 1 . . . . . . . . . 1 Haulers Reinforced 1 | . . . . . . . . . . . . . . 1 . . . Active Scanning Responses . | . . . . . . . . . . . . . . . . . . Cargo Convoy Interrupts . | . . . . . . . . . . . . . . . . . . Stealth | -11 -10 -10 -9 -9 -9 -8 -8 -7 -7 -7 -7 -7 -6 -6 -6 -6 -5 --------- Run | Scr Mat Min Mat Min Exi Min Mat Fac Was Fac Low Dat Pro Fac Low Low Fac Distress Signals 6 | . 1 . 2 . . . 2 . . . . . . 1 . . . Communications Jammed 34 | . . . 34 . . . . . . . . . . . . . . Distress Signals 34 | . . . 34 . . . . . . . . . . . . . . Times Spotted 155 | . 17 . 18 . . 5 36 6 . 1 7 4 14 20 10 4 13 Peak Tracking Total 10 | . 8 . 6 . . 3 6 4 . 1 7 3 4 6 4 3 10 Tactical Retreats 6 | . 1 . 1 . . . . . . . . . . 1 . 1 2 Traps | -11 -10 -10 -9 -9 -9 -8 -8 -7 -7 -7 -7 -7 -6 -6 -6 -6 -5 ------- Run | Scr Mat Min Mat Min Exi Min Mat Fac Was Fac Low Dat Pro Fac Low Low Fac Traps Triggered 5 | . . . . . . . 1 1 . . . . . . . . 3 Indirectly . | . . . . . . . . . . . . . . . . . . Trap Hack Attempts . | . . . . . . . . . . . . . . . . . . Triggered . | . . . . . . . . . . . . . . . . . . Disarmed . | . . . . . . . . . . . . . . . . . . Reprogrammed . | . . . . . . . . . . . . . . . . . . Reused . | . . . . . . . . . . . . . . . . . . Traps Extracted . | . . . . . . . . . . . . . . . . . . Installed . | . . . . . . . . . . . . . . . . . . Triggered . | . . . . . . . . . . . . . . . . . . Machines | -11 -10 -10 -9 -9 -9 -8 -8 -7 -7 -7 -7 -7 -6 -6 -6 -6 -5 ---------- Run | Scr Mat Min Mat Min Exi Min Mat Fac Was Fac Low Dat Pro Fac Low Low Fac Machines Disabled 20 | . 1 . . 1 . 2 6 1 . 1 1 . . 2 . . 5 Max in Single Turn 5 | . 1 . . 1 . 1 2 1 . . . . . . . . 5 Garrison Access 1 | . . . . . . . 1 . . . . . . . . . . Machines Sabotaged . | . . . . . . . . . . . . . . . . . . Garrisons Compromised . | . . . . . . . . . . . . . . . . . . Overloaded Fab Kills . | . . . . . . . . . . . . . . . . . . Hacking | -11 -10 -10 -9 -9 -9 -8 -8 -7 -7 -7 -7 -7 -6 -6 -6 -6 -5 --------- Run | Scr Mat Min Mat Min Exi Min Mat Fac Was Fac Low Dat Pro Fac Low Low Fac Machines Accessed 16 | . 3 . 3 . 1 . 2 . . 1 . . . 3 1 . 2 Terminals 6 | . 1 . 2 . . . . . . . . . . 3 . . . Fabricators 2 | . . . . . . . . . . 1 . . . . . . 1 Repair Stations 2 | . 1 . . . . . . . . . . . . . . . 1 Recycling Units 1 | . 1 . . . . . . . . . . . . . . . . Scanalyzers 2 | . . . 1 . . . 1 . . . . . . . . . . Garrison Access 1 | . . . . . . . 1 . . . . . . . . . . Total Hacks 46 | . 8 . 17 . 1 . 6 . . 2 . . . 7 1 . 4 Successful 32 | . 5 . 14 . 1 . 5 . . 1 . . . 4 1 . 1 Failed 14 | . 3 . 3 . . . 1 . . 1 . . . 3 . . 3 Catastrophic 3 | . . . . . . . . . . 1 . . . . . . 2 Database Lockouts . | . . . . . . . . . . . . . . . . . . Manual 18 | . 4 . 6 . 1 . . . . . . . . 5 2 . . Terminals 18 | . 3 . 8 . . . . . . . . . . 7 . . . Fabricators 3 | . . . . . . . . . . 2 . . . . . . 1 Repair Stations 6 | . 3 . . . . . . . . . . . . . . . 3 Recycling Units 2 | . 2 . . . . . . . . . . . . . . . . Scanalyzers 14 | . . . 9 . . . 5 . . . . . . . . . . Garrison Access 1 | . . . . . . . 1 . . . . . . . . . . Terminal Hacks 4 | . . . 2 . 1 . . . . . . . . . 1 . . Open Door 1 | . . . . . . . . . . . . . . . 1 . . Alert Level 1 | . . . 1 . . . . . . . . . . . . . . Registered Components 1 | . . . 1 . . . . . . . . . . . . . . EX-Prototype ID Bank 1 | . . . . . 1 . . . . . . . . . . . . Fabricator Hacks 2 | . . . . . . . . . . 1 . . . . . . 1 Network Status 1 | . . . . . . . . . . 1 . . . . . . . Build 1 | . . . . . . . . . . . . . . . . . 1 Repair Station Hacks 2 | . 2 . . . . . . . . . . . . . . . . Scan Component 1 | . 1 . . . . . . . . . . . . . . . . Repair 1 | . 1 . . . . . . . . . . . . . . . . Recycling Unit Hacks 1 | . 1 . . . . . . . . . . . . . . . . Report Inventory 1 | . 1 . . . . . . . . . . . . . . . . Scanalyzer 13 | . . . 9 . . . 4 . . . . . . . . . . Insert Component 6 | . . . 4 . . . 2 . . . . . . . . . . Analyze 7 | . . . 5 . . . 2 . . . . . . . . . . Garrison Access Hacks 1 | . . . . . . . 1 . . . . . . . . . . Seal Access 1 | . . . . . . . 1 . . . . . . . . . . Unauthorized Hacks 9 | . 2 . 3 . . . . . . . . . . 4 . . . Terminals 8 | . 1 . 3 . . . . . . . . . . 4 . . . Botnet 5 | . . . 2 . . . . . . . . . . 3 . . . Detonate 1 | . . . . . . . . . . . . . . 1 . . . Disrupt 1 | . . . 1 . . . . . . . . . . . . . . Search 1 | . 1 . . . . . . . . . . . . . . . . Fabricators . | . . . . . . . . . . . . . . . . . . Repair Stations . | . . . . . . . . . . . . . . . . . . Recycling Units 1 | . 1 . . . . . . . . . . . . . . . . Tunnel 1 | . 1 . . . . . . . . . . . . . . . . Scanalyzers . | . . . . . . . . . . . . . . . . . . Garrison Access . | . . . . . . . . . . . . . . . . . . Data Cores Recovered . | . . . . . . . . . . . . . . . . . . Used . | . . . . . . . . . . . . . . . . . . Hacking Detections 12 | . 2 . 3 . . . 1 . . 1 . . . 3 . . 2 Full Trace Events 7 | . 1 . 1 . . . 1 . . 1 . . . 1 . . 2 Feedback Events 2 | . . . . . . . 1 . . . . . . . . . 1 Corruption 2 | . . . . . . . 1 . . . . . . . . . 1 Feedback Blocked . | . . . . . . . . . . . . . . . . . . Robot Schematics Acquired . | . . . . . . . . . . . . . . . . . . Robots Built . | . . . . . . . . . . . . . . . . . . Authchips . | . . . . . . . . . . . . . . . . . . Time . | . . . . . . . . . . . . . . . . . . Total Robot Build Rating . | . . . . . . . . . . . . . . . . . . Part Schematics Acquired 6 | . . . 4 . . . 2 . . . . . . . . . . Parts Built 2 | . . . . . . . . . . . . . . . . . 2 Authchips . | . . . . . . . . . . . . . . . . . . Time 53 | . . . . . . . . . . . . . . . . . 53 Total Part Build Rating 12 | . . . . . . . . . . . . . . . . . 12 Parts Repaired 1 | . 1 . . . . . . . . . . . . . . . . Time 26 | . 26 . . . . . . . . . . . . . . . . Parts Recycled . | . . . . . . . . . . . . . . . . . . Recycled Matter . | . . . . . . . . . . . . . . . . . . Retrieved Matter . | . . . . . . . . . . . . . . . . . . Retrieved Components . | . . . . . . . . . . . . . . . . . . Parts Scanalyzed 6 | . . . 4 . . . 2 . . . . . . . . . . Part Schematics Acquired 6 | . . . 4 . . . 2 . . . . . . . . . . Parts Damaged . | . . . . . . . . . . . . . . . . . . Bothacking | -11 -10 -10 -9 -9 -9 -8 -8 -7 -7 -7 -7 -7 -6 -6 -6 -6 -5 ------------ Run | Scr Mat Min Mat Min Exi Min Mat Fac Was Fac Low Dat Pro Fac Low Low Fac Used RIF Installer . | . . . . . . . . . . . . . . . . . . Robots Hacked . | . . . . . . . . . . . . . . . . . . Non-combat . | . . . . . . . . . . . . . . . . . . Combat . | . . . . . . . . . . . . . . . . . . Robot Hacks Applied . | . . . . . . . . . . . . . . . . . . Relay Couplers Released 2 | . . . . . . . 2 . . . . . . . . . . Machine Destruction 2 | . . . . . . . 2 . . . . . . . . . . Robots Rewired 2 | . . . . . . . . . . . 2 . . . . . . Allies Hacked 2 | . . . . . . . . . . . . . . 2 . . . Hacks Repelled . | . . . . . . . . . . . . . . . . . . Allies | -11 -10 -10 -9 -9 -9 -8 -8 -7 -7 -7 -7 -7 -6 -6 -6 -6 -5 -------- Run | Scr Mat Min Mat Min Exi Min Mat Fac Was Fac Low Dat Pro Fac Low Low Fac Total Allies 24 | . . . . 2 . . . . 20 . 2 . . . . . . Largest Group 20 | . . . . 2 2 . . . 20 20 19 18 16 9 . . . Highest-Rated Group 525 | . . . . 58 58 . . . 517 517 525 525 458 260 . . . Highest-Rated Ally 35 | . . . . 31 31 . . . 35 35 35 35 35 33 . . . Total Orders . | . . . . . . . . . . . . . . . . . . Ally Attacks 291 | . . . . . . . . . . 13 41 31 101 105 . . . Total Damage 6217 | . . . . . . . . . . 411 745 1130 1986 1945 . . . Kills 41 | . . . . . . . . . . 4 10 4 14 9 . . . Allies Corrupted . | . . . . . . . . . . . . . . . . . . Allies Melted . | . . . . . . . . . . . . . . . . . . Intel | -11 -10 -10 -9 -9 -9 -8 -8 -7 -7 -7 -7 -7 -6 -6 -6 -6 -5 ------- Run | Scr Mat Min Mat Min Exi Min Mat Fac Was Fac Low Dat Pro Fac Low Low Fac Robot Analysis Total . | . . . . . . . . . . . . . . . . . . Derelict Logs Recovered 4 | . . . . . . . . . . . . . 1 . 2 1 . Drone Launches . | . . . . . . . . . . . . . . . . . . Drone Recoveries . | . . . . . . . . . . . . . . . . . . Exploration | -11 -10 -10 -9 -9 -9 -8 -8 -7 -7 -7 -7 -7 -6 -6 -6 -6 -5 ------------- Run | Scr Mat Min Mat Min Exi Min Mat Fac Was Fac Low Dat Pro Fac Low Low Fac Turns Passed 9485 | . 359 113 774 450 508 756 950 536 502 138 382 117 1255 659 962 589 435 Spaces Moved 4497 | 1 129 68 352 227 267 479 393 221 301 71 190 66 743 235 381 110 263 Core 178 | . . . . . . . 10 . 1 . . . . . 40 110 17 Treads 2462 | . 54 68 155 . . . 18 221 300 71 190 66 743 235 341 . . Legs 1611 | 1 75 . 197 227 267 479 365 . . . . . . . . . . Wheels 246 | . . . . . . . . . . . . . . . . . 246 Hover . | . . . . . . . . . . . . . . . . . . Flight . | . . . . . . . . . . . . . . . . . . Fastest Speed 50 | 120 120 160 160 190 120 120 120 157 157 160 160 160 160 240 160 50 50 Average Speed 181 | 120 137 160 176 190 189 147 172 204 160 160 160 160 160 240 224 515 114 Slowest Speed 700 | 120 190 160 260 190 190 190 350 330 700 160 160 160 160 240 550 700 250 Overloaded Moves . | . . . . . . . . . . . . . . . . . . Propulsion Burnouts . | . . . . . . . . . . . . . . . . . . Robots Hopped . | . . . . . . . . . . . . . . . . . . Cave-ins Triggered 1 | . . . . . . . . 1 . . . . . . . . . Exploration Rate (%) 40 | 2 29 22 36 67 61 90 40 6 82 2 39 65 80 13 63 17 7 Regions Visited 17 Branch Regions 9 Pre-discovered Areas 2 | . 1 . . . . . . . . . . . 1 . . . . Known Exits Taken . | . . . . . . . . . . . . . . . . . . Unknown Exits Taken 15 | 1 1 1 1 1 1 1 1 . . 1 1 1 1 1 1 1 . Scrap Searched 10 | . . 1 . . . 2 . . . . 3 . 1 . 2 1 . Spaces Dug 10 | . . . 1 . . . 1 2 . . . . 2 . . . 4 Terrain Destroyed 236 | . . . 11 18 . 30 125 2 . . . . 2 . . . 48 Melee 9 | . . . . . . . 1 2 . . . . 2 . . . 4 Projectile 84 | . . . 11 3 . 30 40 . . . . . . . . . . AOE 143 | . . . . 15 . . 84 . . . . . . . . . 44 Terrain Rammed . | . . . . . . . . . . . . . . . . . . Walls Destroyed . | . . . . . . . . . . . . . . . . . . Machines Disabled . | . . . . . . . . . . . . . . . . . . Actions | -11 -10 -10 -9 -9 -9 -8 -8 -7 -7 -7 -7 -7 -6 -6 -6 -6 -5 --------- Run | Scr Mat Min Mat Min Exi Min Mat Fac Was Fac Low Dat Pro Fac Low Low Fac Total 5296 | . 223 72 443 238 269 514 547 260 320 96 257 78 791 272 425 120 371 Wait 327 | . 37 . 32 6 . 4 60 1 8 26 32 13 35 . 3 . 70 Move 4481 | . 128 67 351 226 266 478 392 221 300 70 189 65 742 234 380 109 263 Hop . | . . . . . . . . . . . . . . . . . . Pick Up 22 | . 2 . 8 1 . 4 6 . 1 . . . . . . . . Fast Attach 61 | . . . 6 . 1 . 12 7 5 . 1 . 3 2 6 2 16 Attach 18 | . 2 . 1 . . . 4 3 . . . . . 1 1 2 4 Detach 10 | . . . 1 . . . . 2 . . . . . 1 2 1 3 Swap 29 | . 6 3 3 . . 4 4 2 . . . . 1 2 1 . 3 Drop 50 | . . 2 12 1 2 6 12 3 6 . . . 1 3 2 . . Fire 210 | . 42 . 28 4 . 16 48 15 . . 3 . 5 22 21 3 3 Melee 50 | . . . . . . 1 9 6 . . 2 . 4 7 9 3 9 Ram . | . . . . . . . . . . . . . . . . . . Kick 6 | . 4 . 1 . . 1 . . . . . . . . . . . Crush 2 | . 2 . . . . . . . . . . . . . . . . Escape Stasis . | . . . . . . . . . . . . . . . . . . Rewire 30 | . . . . . . . . . . . 30 . . . . . . Trap . | . . . . . . . . . . . . . . . . . . Miscellaneous . | . . . . . . . . . . . . . . . . . . Route ------- -11/Scrapyard -10/Materials -10/Mines -9/Materials -9/Mines (discovered 2 exits: *Mat / *Exi) -9/Exiles -8/Mines -8/Materials -7/Factory -7/Waste -7/Factory -7/Lower Caves -7/Data Miner -6/Proximity Caves -6/Factory -6/Lower Caves -6/Lower Caves -5/Factory History --------- Turn | Location | Event 1 | -11/Scrapyard | Discovered new exit (range 0) 1 | -11/Scrapyard | Entered Materials 205 | -10/Materials | Core integrity fell below 50% 253 | -10/Materials | Discovered new exit (range 16) 306 | -10/Materials | Repaired Ion Engine 306 | -10/Materials | Build established: Mutant 360 | -10/Materials | Entered Mines 462 | -10/Mines | Discovered new exit (range 8) 473 | -10/Mines | Entered Materials 473 | -9/Materials | Evolved 2 slots: Utility x1, Weapon x1 799 | -9/Materials | Build established: Gunner 1202 | -9/Materials | Discovered new exit (range 16) 1247 | -9/Materials | Entered Mines 1369 | -9/Mines | Discovered new exit (range 15) 1515 | -9/Mines | A weapon hastily lodged in a ceiling crevice suddenly fell to the ground 1682 | -9/Mines | Deemed a non-threat by the Exiles lab entrance 1684 | -9/Mines | Discovered new exit (range 5) 1697 | -9/Mines | Entered Exiles 1697 | -9/Exiles | Accompanied by 2 allies 1727 | -9/Exiles | Led the pair of lost Derelicts to a safe place 1745 | -9/Exiles | Met 8R-AWN 1777 | -9/Exiles | Met EX-HEX 1838 | -9/Exiles | Met EX-BIN 1861 | -9/Exiles | Aligned with FarCom system 1863 | -9/Exiles | Given EX-Vault access code 1963 | -9/Exiles | Opened EX-Vault 2007 | -9/Exiles | Found AWS/Gauss 2051 | -9/Exiles | Warned to stay clear of 0b10 Research branches 2113 | -9/Exiles | Met EX-DEC 2178 | -9/Exiles | Discovered new exit (range 14) 2205 | -9/Exiles | Left Exiles lab with AWS/Gauss 2205 | -9/Exiles | Entered Mines 2515 | -8/Mines | Build established: Skirmisher 2902 | -8/Mines | Discovered new exit (range 12) 2961 | -8/Mines | Entered Materials 2961 | -8/Materials | Evolved 2 slots: Weapon x2 3088 | -8/Materials | Destroyed 8 combat bots 3281 | -8/Materials | Build established: Scavenger-Skirmisher 3355 | -8/Materials | Destroyed 7 combat bots 3799 | -8/Materials | Discovered new exit (range 6) 3838 | -8/Materials | Lost 3 parts (1n1u1w) 3865 | -8/Materials | Found Prototype Device 3911 | -8/Materials | Entered Factory 3911 | -7/Factory | Evolved 2 slots: Utility x2 4253 | -7/Factory | Build established: Scavenger-Gunner 4368 | -7/Factory | Crushed by falling debris 4368 | -7/Factory | System corruption reached 10% 4399 | -7/Factory | Lost 3 parts (2u1w) 4447 | -7/Factory | Sucked down chute 4447 | -7/Factory | Entered Waste 4448 | -7/Waste | Joined by Warlord forces that had cleared the area 4504 | -7/Waste | Found Damper Plating 4612 | -7/Waste | Discovered new exit (range 13) 4934 | -7/Waste | Build established: Scavenger-Tank 4949 | -7/Waste | Entered Factory 4949 | -7/Factory | Accompanied by 20 allies 5042 | -7/Factory | Discovered new exit (range 7) 5087 | -7/Factory | Entered Lower Caves 5087 | -7/Lower Caves | Accompanied by 19 allies 5271 | -7/Lower Caves | Attracted the attention of an 0b10 outpost 5445 | -7/Lower Caves | A Derelict revealed a hidden shortcut to meet someone special 5469 | -7/Lower Caves | Entered Data Miner 5469 | -7/Data Miner | Accompanied by 18 allies 5469 | -7/Data Miner | Discovered new exit (range 6) 5500 | -7/Data Miner | Met Data Miner 5528 | -7/Data Miner | Data Conduit disabled 5586 | -7/Data Miner | Entered Proximity Caves 5586 | -6/Proximity Caves | Accompanied by 16 allies 5774 | -6/Proximity Caves | Attracted the attention of an 0b10 checkpoint 6816 | -6/Proximity Caves | Discovered new exit (range 14) 6841 | -6/Proximity Caves | Entered Factory 6841 | -6/Factory | Accompanied by 9 allies 6841 | -6/Factory | Evolved 2 slots: Utility x1, Weapon x1 7209 | -6/Factory | Spotted B-75 Beast 7225 | -6/Factory | Destroyed B-75 Beast 7403 | -6/Factory | Discovered new exit (range 15) 7410 | -6/Factory | Build established: Scavenger-Executioner 7500 | -6/Factory | Entered Lower Caves 7593 | -6/Lower Caves | Attracted the attention of an 0b10 checkpoint 7861 | -6/Lower Caves | Lost 3 parts (1u2w) 8163 | -6/Lower Caves | Learned Factory terminal intel 8209 | -6/Lower Caves | Discovered new exit (range 7) 8267 | -6/Lower Caves | Lost 4 parts (1n1u2w) 8462 | -6/Lower Caves | Entered another Lower Caves area 8524 | -6/Lower Caves | Build established: Gunner 8691 | -6/Lower Caves | Learned Factory terminal intel 8951 | -6/Lower Caves | Build established: Derelict-Gunner 9009 | -6/Lower Caves | Attracted the attention of an 0b10 checkpoint 9047 | -6/Lower Caves | Discovered new exit (range 9) 9051 | -6/Lower Caves | Entered Factory 9051 | -5/Factory | Evolved 2 slots: Utility x1, Weapon x1 9052 | -5/Factory | Loaded intel: 27 terminal locations 9054 | -5/Factory | Found Imp. Powered Armor 9073 | -5/Factory | Lost 10 parts (3p3u4w) 9358 | -5/Factory | Build established: Mutant 9397 | -5/Factory | Fabricated Imp. Launcher Guidance Computer? 9486 | -5/Factory | Self-destructed Last Messages --------------- 09397_ K-01 Serf collects debris. 09434_ Critical hit (Burn: +37). 09447_ Penetrated by Slug. 09474_ Power Conduit explodes. 09474_ Imp. Medium Armor Plating destroyed. 09474_ Destroyed Imp. Medium Armor Plating. 09474_ Power Conduit explodes. 09474_ G-67 Veteran destroyed. 09474_ Destroyed Hvy. Laser. 09474_ G-50 Soldier destroyed. 09475_ Penetrated by Slug. 09475_ K-01 Serf collects debris. 09478_ Penetrated by Slug. 09478_ Imp. Plasma Cutter destroyed. 09482_ Penetrated by Slug. 09482_ Imp. Powered Armor destroyed. 09482_ Penetrated by Slug. 09483_ K-01 Serf collects debris. 09485_ Penetrated by Slug. 09485_ Arm. Huge Wheel destroyed. Map ----- +----------------------------------------------------+ | ?????????????????????????????????????????????????? | | ?????????????????????????????????????????????????? | | ?????????????????????????????????????????????????? | | ?????????????????????????????????????????????????? | | ?????????????????????????????????????????????????? | | ?????????????????????????????????????????????????? | | ?????????????????????????????????????????????????? | | ?????????????????????????????????????????????????? | | ?????????????????????????????????????????????????? | | ?????????????????????????????????????????????????? | | ?????????????????????????????????????????????????? | | ?????????????????????????????????????????????????? | | ????????????????###?####?????????????????????????? | | ??????????????### ## ##????????????????????????? | | ??????????????# #??????????????????###???? | | ??????????#####;;; ;##?????????#########"####? | | ??????????# = ##????????# #? | | ??????????# #????????# #? | | ??????????# #######??# ## | | ??????????# #??# # | | ??????????# #??# # | | ??????????# #??# # | | ??????????# ! #??# # | | ??????????# #??# " | | ??????????# #??# # | | ??????????# %@ #??# # | | ??????????# h g #??# # | | ??????????# g #??# # | | ??????????######; k; ##########"#########/### | | ???????# p g ^ | | ??????# p == | | ??????#T != | | ??????## ""*= | | ???????# "" | | ???????# #####+######+########## """ | | ???????# ??????????????????????# """ | | ???????# ???????????????????????# """ | | ???????# ????????????????????????# | | ???????# ?????????????????????????# "" | | ???????# ?????????????????????????# "" | | ???????? ??????????????????????????# """ | | ????????????????????????????????????###+### """ | | ??????????????????????????????????????????# """ | | ??????????????????????????????????????????# | | ??????????????????????????????????????????? """ | | ??????????????????????????????????????????????""" | | ??????????????????????????????????????????????""" | | ?????????????????????????????????????????????? | | ??????????????????????????????????????????????? ? | | ????????????????????????????????????????????????? | +----------------------------------------------------+ Best States ------------- Heat Dissipation 70 Energy Generation 19 Energy Capacity 315 Matter Stores 300 Matter Capacity 400 Sight Range 16 Terrain Scan Density 10 ECM Strength 2 Jamming Range 8 Additional Mass Support 9 Armor Coverage 1600 Resistance: EM 90 Propulsion Shielding 66 Melee Speed Boost 20 Evasion (%) 55 Targeting Accuracy 16 Melee Accuracy 8 Recoil Reduction 2 Energy Filtering 30 Item Schematics ----------------- Lgt. Assault Rifle | -9/Materials | Scanalyzed Cryofiber Web | -9/Materials | Scanalyzed Beam Cannon | -9/Materials | Scanalyzed Aluminum Leg | -9/Materials | Scanalyzed Lgt. Armor Plating | -8/Materials | Scanalyzed Hrd. Medium Armor Plating | -8/Materials | Scanalyzed Robot Schematics ------------------ None Fabricated ------------ Imp. Launcher Guidance Computer | x2 | -5/Factory | Preloaded Alien Tech Used ----------------- None Achievements -------------- None Challenges ------------ None Game ------ Seed LinearUtilityCharge Manual? 0 Play Time 00:47:40 Cumulative 354.7 hours Start 2022.01.06 @ 11:19:32 End 2022.01.06 @ 13:28:38 Sessions 3 Manual Loads 0 Difficulty Rogue Special Mode None Game No. 262 Rogue 88 Adventurer 61 Explorer 113 Win Type - Total 19 Types 17/0/1/0/0/0/0/1/0 Lore% 60 Gallery% 84 Achievement% 66 Wizard Run 0 Options --------- ASCII 0 Keyboard 1 Movement Numpad Keybinds 0 Fullscreen 2 Font 18/X11 Map View 76x50 Tactical HUD 1 Map Filters NONE Filters NONE Steam 1 RUN: dac2805d-926f-4ea5-b1f7-9186e1631a4d